[Event "NJSK 2024 Cm"]
[Site "Groningen, Netherlands"]
[Date "2024.04.29"]
[Round "3.7"]
[White "Jermin, Ayleanna"]
[Black "Barbier, Emma"]
[Result "1-0"]
[TimeControl "90min/40moves + 30min + 30sec/move"]
[WhiteElo "1249"]
[BlackElo "1473"]

1. e4 {[%clk 01:30:55]} {[%emt 00:00:04]} e5 {[%clk 01:30:56]} {[%emt
00:00:05]} 2. f4 {[%clk 01:30:55]} {[%emt 00:00:30]} f6 {[%clk 01:31:01]}
{[%emt 00:00:25]} 3. Nf3 {[%clk 01:30:55]} {[%emt 00:00:29]} d6 {[%clk
01:31:03]} {[%emt 00:00:28]} 4. Nc3 {[%clk 01:31:00]} {[%emt 00:00:26]} a6
{[%clk 01:30:54]} {[%emt 00:00:39]} 5. h3 {[%clk 01:30:32]} {[%emt 00:00:57]}
Be6 {[%clk 01:31:07]} {[%emt 00:00:17]} 6. d4 {[%clk 01:29:21]} {[%emt
00:01:40]} Nd7 {[%clk 01:31:03]} {[%emt 00:00:35]} 7. dxe5 {[%clk 01:28:00]}
{[%emt 00:01:51]} dxe5 {[%clk 01:31:02]} {[%emt 00:00:30]} 8. Be3 {[%clk
01:26:44]} {[%emt 00:01:46]} Bd6 {[%clk 01:25:16]} {[%emt 00:06:16]} 9. a3
{[%clk 01:25:32]} {[%emt 00:01:43]} Ne7 {[%clk 01:25:05]} {[%emt 00:00:40]} 10.
Qd2 {[%clk 01:22:01]} {[%emt 00:04:01]} Nc6 {[%clk 01:24:45]} {[%emt 00:00:50]}
11. O-O-O {[%clk 01:19:38]} {[%emt 00:02:54]} Qe7 {[%clk 01:24:24]} {[%emt
00:00:50]} 12. Be2 {[%clk 01:15:58]} {[%emt 00:04:10]} b5 {[%clk 01:23:27]}
{[%emt 00:01:28]} 13. Nd5 {[%clk 01:12:50]} {[%emt 00:03:37]} Qd8 {[%clk
01:21:23]} {[%emt 00:02:33]} 14. g4 {[%clk 01:11:13]} {[%emt 00:02:08]} Nc5
{[%clk 01:18:42]} {[%emt 00:03:11]} 15. f5 {[%clk 01:09:25]} {[%emt 00:02:19]}
Bf7 {[%clk 01:17:22]} {[%emt 00:01:48]} 16. Nc3 {[%clk 01:06:03]} {[%emt
00:03:53]} Qe7 {[%clk 01:13:04]} {[%emt 00:04:49]} 17. g5 {[%clk 00:59:48]}
{[%emt 00:06:45]} Nd7 {[%clk 01:10:49]} {[%emt 00:02:44]} 18. Nd5 {[%clk
00:59:15]} {[%emt 00:01:03]} b4 {[%clk 01:09:38]} {[%emt 00:01:41]} 19. Nxe7
{[%clk 00:58:37]} {[%emt 00:01:08]} Kxe7 {[%clk 01:09:53]} {[%emt 00:00:16]} 20.
gxf6+ {[%clk 00:57:15]} {[%emt 00:01:01]} Nxf6 {[%clk 01:10:23]} 21. axb4
{[%clk 00:53:11]} {[%emt 00:05:25]} Bxb4 {[%clk 01:10:41]} {[%emt 00:00:11]} 22.
c3 {[%clk 00:52:50]} {[%emt 00:00:51]} Rad8 {[%clk 01:10:28]} {[%emt 00:00:43]}
23. Qc2 {[%clk 00:52:28]} {[%emt 00:00:52]} Bd6 {[%clk 01:10:18]} {[%emt
00:00:39]} 24. c4 {[%clk 00:51:13]} {[%emt 00:01:46]} Ke8 {[%clk 01:10:21]}
{[%emt 00:00:27]} 25. c5 {[%clk 00:50:34]} {[%emt 00:01:10]} Be7 {[%clk
01:10:39]} {[%emt 00:00:12]} 26. Rxd8+ {[%emt 00:00:41]} Nxd8 {[%clk 01:10:51]}
{[%emt 00:00:16]} 27. Qa4+ {[%clk 00:50:15]} {[%emt 00:00:39]} Kf8 {[%clk
01:11:13]} {[%emt 00:00:07]} 28. Nxe5 {[%clk 00:49:57]} {[%emt 00:00:49]} g6
{[%clk 01:11:20]} {[%emt 00:00:23]} 29. Nxf7 {[%clk 00:49:17]} {[%emt
00:00:57]} Nxf7 {[%clk 01:11:50]} 30. Qxa6 {[%clk 00:48:38]} {[%emt 00:01:23]}
Nxe4 {[%clk 01:12:02]} {[%emt 00:00:17]} 31. Qa8+ {[%clk 00:48:52]} {[%emt
00:00:16]} Kg7 {[%clk 01:12:26]} {[%emt 00:00:06]} 32. Qxe4 {[%clk 00:48:35]}
{[%emt 00:00:46]} gxf5 {[%clk 01:12:38]} {[%emt 00:00:18]} 33. Qxe7 {[%clk
00:48:24]} {[%emt 00:00:42]} 1-0

[Event "NJSK 2024 Cm"]
[Site "Groningen, Netherlands"]
[Date "2024.04.30"]
[Round "4.1"]
[White "Roebers, Bregje"]
[Black "Luong, Thao"]
[Result "1-0"]
[TimeControl "90min/40moves + 30min + 30sec/move"]
[WhiteElo "1829"]
[BlackElo "1687"]

1. e4 {[%clk 01:30:58]} {[%emt 00:00:02]} e5 {[%clk 01:30:56]} {[%emt
00:00:03]} 2. Nf3 {[%clk 01:31:23]} {[%emt 00:00:05]} Nc6 {[%clk 01:31:20]}
{[%emt 00:00:06]} 3. Bc4 {[%clk 01:31:37]} {[%emt 00:00:16]} Bc5 {[%clk
01:31:44]} {[%emt 00:00:07]} 4. c3 {[%clk 01:31:48]} {[%emt 00:00:19]} Nf6
{[%clk 01:32:08]} {[%emt 00:00:06]} 5. d4 {[%clk 01:31:39]} {[%emt 00:00:38]}
exd4 {[%clk 01:32:30]} {[%emt 00:00:08]} 6. e5 {[%clk 01:31:58]} {[%emt
00:00:12]} d5 {[%clk 01:32:45]} {[%emt 00:00:15]} 7. Bb5 {[%clk 01:32:03]}
{[%emt 00:00:25]} Ne4 {[%clk 01:30:51]} {[%emt 00:02:23]} 8. cxd4 {[%clk
01:31:21]} {[%emt 00:01:12]} Bb4+ {[%clk 01:28:44]} {[%emt 00:02:37]} 9. Bd2
{[%clk 01:30:44]} {[%emt 00:01:06]} Nxd2 {[%clk 01:27:40]} {[%emt 00:01:34]} 10.
Nbxd2 {[%clk 01:30:18]} {[%emt 00:00:57]} O-O {[%clk 01:27:16]} {[%emt
00:00:54]} 11. O-O {[%clk 01:18:41]} {[%emt 00:12:07]} f6 {[%clk 01:19:51]}
{[%emt 00:07:55]} 12. Qa4 {[%clk 01:08:21]} {[%emt 00:10:50]} Bxd2 {[%clk
01:13:24]} {[%emt 00:06:56]} 13. Bxc6 {[%clk 01:06:51]} {[%emt 00:02:00]} Bh6
{[%clk 01:07:28]} {[%emt 00:06:26]} 14. Bb5 {[%clk 01:03:58]} {[%emt 00:03:24]}
c6 {[%clk 01:06:34]} {[%emt 00:01:25]} 15. Be2 {[%clk 01:00:34]} {[%emt
00:03:53]} Bg4 {[%clk 00:59:19]} {[%emt 00:07:45]} 16. Qc2 {[%clk 00:54:09]}
{[%emt 00:06:56]} Bxf3 {[%clk 00:52:42]} {[%emt 00:07:05]} 17. Bxf3 {[%clk
00:50:16]} {[%emt 00:04:23]} fxe5 {[%clk 00:52:33]} {[%emt 00:00:40]} 18. dxe5
{[%clk 00:36:16]} {[%emt 00:14:30]} Qg5 {[%clk 00:50:08]} {[%emt 00:02:54]} 19.
Qe2 {[%clk 00:35:50]} {[%emt 00:00:56]} Rae8 {[%clk 00:48:57]} {[%emt
00:01:41]} 20. Rae1 {[%clk 00:32:31]} {[%emt 00:03:49]} Rf5 {[%clk 00:38:00]}
{[%emt 00:11:28]} 21. e6 {[%clk 00:29:27]} {[%emt 00:03:35]} Rf6 {[%clk
00:34:50]} {[%emt 00:03:39]} 22. Bg4 {[%clk 00:25:21]} {[%emt 00:04:35]} Rf4
{[%clk 00:29:56]} {[%emt 00:05:24]} 23. h3 {[%clk 00:23:41]} {[%emt 00:02:11]}
g6 {[%clk 00:24:14]} {[%emt 00:06:12]} 24. f3 {[%clk 00:16:50]} {[%emt
00:07:21]} Re7 {[%clk 00:21:58]} {[%emt 00:02:46]} 25. g3 {[%clk 00:15:57]}
{[%emt 00:01:23]} Rb4 {[%clk 00:19:52]} {[%emt 00:02:35]} 26. Qc2 {[%clk
00:10:19]} {[%emt 00:06:08]} Bg7 {[%clk 00:17:33]} {[%emt 00:02:49]} 27. h4
{[%clk 00:06:19]} {[%emt 00:04:31]} Qf6 {[%clk 00:15:53]} {[%emt 00:02:09]} 28.
b3 {[%clk 00:06:16]} {[%emt 00:00:34]} h5 {[%clk 00:11:27]} {[%emt 00:04:56]}
29. Bh3 {[%clk 00:06:29]} {[%emt 00:00:17]} Rb5 {[%clk 00:07:50]} {[%emt
00:04:05]} 30. f4 {[%clk 00:06:10]} {[%emt 00:00:51]} b6 {[%clk 00:05:45]}
{[%emt 00:02:35]} 31. Re5 {[%clk 00:05:30]} {[%emt 00:01:10]} Rc5 {[%clk
00:04:19]} {[%emt 00:01:56]} 32. Qd3 {[%clk 00:05:22]} {[%emt 00:00:38]} Qf8
{[%clk 00:04:23]} {[%emt 00:00:26]} 33. Rg5 {[%clk 00:05:19]} {[%emt 00:00:33]}
Rc3 {[%clk 00:03:14]} {[%emt 00:01:39]} 34. Qxg6 {[%clk 00:05:34]} {[%emt
00:00:15]} Rc7 {[%clk 00:03:14]} {[%emt 00:00:31]} 35. Bf5 {[%clk 00:04:10]}
{[%emt 00:01:53]} Qc5+ {[%clk 00:02:52]} {[%emt 00:00:51]} 36. Kh1 {[%clk
00:04:23]} {[%emt 00:00:17]} Qb5 {[%clk 00:02:33]} {[%emt 00:00:50]} 37. Qe8#
{[%emt 00:00:25]} 1-0

[Event "NJSK 2024 Cm"]
[Site "Groningen, Netherlands"]
[Date "2024.04.30"]
[Round "4.2"]
[White "Elangkumaran, Anumitra"]
[Black "Jorritsma, Eli Alia"]
[Result "0-1"]
[TimeControl "90min/40moves + 30min + 30sec/move"]
[WhiteElo "1605"]
[BlackElo "1777"]

1. e4 {[%clk 01:30:58]} {[%emt 00:00:01]} g6 {[%clk 01:30:53]} {[%emt
00:00:07]} 2. Nc3 {[%clk 01:31:12]} {[%emt 00:00:16]} Bg7 {[%clk 01:31:09]}
{[%emt 00:00:14]} 3. Bc4 {[%clk 01:30:55]} {[%emt 00:00:47]} d6 {[%clk
01:31:03]} {[%emt 00:00:36]} 4. d3 {[%clk 01:30:49]} {[%emt 00:00:37]} a6
{[%clk 01:30:51]} {[%emt 00:00:42]} 5. a4 {[%clk 01:29:49]} {[%emt 00:01:29]}
Nf6 {[%clk 01:29:53]} {[%emt 00:01:28]} 6. Nf3 {[%clk 01:27:24]} {[%emt
00:02:55]} O-O {[%clk 01:27:08]} {[%emt 00:03:15]} 7. O-O {[%clk 01:25:53]}
{[%emt 00:02:02]} c5 {[%clk 01:23:11]} {[%emt 00:04:27]} 8. Be3 {[%clk
01:22:46]} {[%emt 00:03:36]} Nc6 {[%clk 01:21:43]} {[%emt 00:01:59]} 9. h3
{[%clk 01:19:27]} {[%emt 00:03:48]} Nd7 {[%clk 01:16:31]} {[%emt 00:05:43]} 10.
Bb3 {[%clk 01:15:24]} {[%emt 00:04:33]} Nde5 {[%clk 01:09:45]} {[%emt
00:07:16]} 11. Nxe5 {[%clk 01:12:16]} {[%emt 00:03:36]} Nxe5 {[%clk 01:09:52]}
{[%emt 00:00:25]} 12. f4 {[%clk 01:10:24]} {[%emt 00:02:22]} Nc6 {[%clk
01:07:49]} {[%emt 00:02:32]} 13. f5 {[%clk 01:09:01]} {[%emt 00:01:53]} Kh8
{[%clk 01:03:46]} {[%emt 00:04:34]} 14. Qd2 {[%clk 01:06:14]} {[%emt 00:03:16]}
gxf5 {[%clk 00:58:57]} {[%emt 00:05:20]} 15. exf5 {[%clk 01:05:15]} {[%emt
00:01:27]} Nd4 {[%clk 00:55:08]} {[%emt 00:04:20]} 16. Bh6 {[%clk 01:03:31]}
{[%emt 00:02:12]} Nxb3 {[%clk 00:49:58]} {[%emt 00:05:41]} 17. cxb3 {[%clk
01:01:23]} {[%emt 00:02:37]} Rg8 {[%clk 00:46:16]} {[%emt 00:04:14]} 18. Rf3
{[%clk 00:56:20]} {[%emt 00:05:32]} Bd7 {[%clk 00:39:56]} {[%emt 00:06:51]} 19.
Raf1 {[%clk 00:54:15]} {[%emt 00:02:35]} Bc6 {[%clk 00:37:13]} {[%emt
00:03:13]} 20. R3f2 {[%clk 00:52:07]} {[%emt 00:02:38]} Bd4 {[%clk 00:33:32]}
{[%emt 00:04:11]} 21. Be3 {[%clk 00:50:59]} {[%emt 00:01:37]} Bxe3 {[%clk
00:32:36]} {[%emt 00:01:26]} 22. Qxe3 {[%clk 00:51:14]} {[%emt 00:00:14]} Rg7
{[%clk 00:30:27]} {[%emt 00:02:41]} 23. Ne4 {[%clk 00:48:32]} {[%emt 00:03:12]}
Bxe4 {[%clk 00:29:05]} {[%emt 00:01:51]} 24. Qxe4 {[%clk 00:47:00]} {[%emt
00:02:00]} d5 {[%clk 00:25:50]} {[%emt 00:03:47]} 25. Qe5 {[%clk 00:45:57]}
{[%emt 00:01:33]} Qd6 {[%clk 00:24:45]} {[%emt 00:01:36]} 26. Qxd6 {[%clk
00:45:27]} {[%emt 00:01:00]} exd6 {[%clk 00:25:11]} {[%emt 00:00:04]} 27. f6
{[%clk 00:45:30]} {[%emt 00:00:26]} Rg3 {[%clk 00:24:36]} {[%emt 00:01:06]} 28.
Rf3 {[%clk 00:45:00]} {[%emt 00:01:00]} Rag8 {[%clk 00:23:47]} {[%emt
00:01:19]} 29. Rxg3 {[%clk 00:45:04]} {[%emt 00:00:25]} Rxg3 {[%clk 00:24:12]}
{[%emt 00:00:05]} 30. Re1 {[%clk 00:44:23]} {[%emt 00:01:11]} Rg6 {[%clk
00:23:22]} {[%emt 00:01:20]} 31. Re8+ {[%clk 00:44:43]} {[%emt 00:00:10]} Rg8
{[%clk 00:23:45]} {[%emt 00:00:07]} 32. Rxg8+ {[%clk 00:44:50]} {[%emt
00:00:23]} Kxg8 {[%clk 00:24:09]} {[%emt 00:00:06]} 33. Kf2 {[%clk 00:44:45]}
{[%emt 00:00:35]} h5 {[%clk 00:22:41]} {[%emt 00:01:58]} 34. Kf3 {[%clk
00:42:42]} {[%emt 00:02:33]} Kh7 {[%clk 00:22:32]} {[%emt 00:00:40]} 35. g4
{[%clk 00:41:58]} {[%emt 00:01:13]} Kg6 {[%clk 00:19:24]} {[%emt 00:03:38]} 36.
gxh5+ {[%clk 00:41:13]} {[%emt 00:01:15]} Kxh5 {[%clk 00:19:47]} {[%emt
00:00:07]} 37. Ke3 {[%clk 00:40:07]} {[%emt 00:01:36]} b5 {[%clk 00:17:21]}
{[%emt 00:02:57]} 38. axb5 {[%clk 00:39:16]} {[%emt 00:01:21]} axb5 {[%clk
00:17:47]} {[%emt 00:00:04]} 39. b4 {[%clk 00:39:27]} {[%emt 00:00:19]} Kg5
{[%clk 00:15:21]} {[%emt 00:02:55]} 40. b3 {[%clk 00:37:40]} {[%emt 00:02:17]}
Kxf6 {[%clk 00:12:52]} {[%emt 00:02:59]} 41. Kf4 {[%clk 00:37:08]} {[%emt
00:01:02]} Kg6 {[%clk 00:12:26]} {[%emt 00:00:56]} 42. h4 {[%clk 00:36:56]}
{[%emt 00:00:42]} Kh5 {[%clk 00:11:02]} {[%emt 00:01:55]} 43. Kf5 {[%clk
00:37:06]} {[%emt 00:00:20]} Kxh4 {[%clk 00:11:03]} {[%emt 00:00:27]} 44. Kf4
{[%clk 00:37:20]} {[%emt 00:00:17]} Kh3 {[%clk 00:10:28]} {[%emt 00:01:06]} 45.
Kf3 {[%clk 00:37:42]} {[%emt 00:00:08]} Kh2 {[%clk 00:10:34]} {[%emt 00:00:24]}
46. Kf2 {[%clk 00:38:07]} {[%emt 00:00:05]} f6 {[%clk 00:11:01]} {[%emt
00:00:03]} 47. Kf3 {[%clk 00:38:09]} {[%emt 00:00:29]} Kg1 {[%clk 00:11:01]}
{[%emt 00:00:30]} 48. Kg3 {[%clk 00:38:10]} {[%emt 00:00:29]} Kf1 {[%clk
00:11:21]} {[%emt 00:00:09]} 49. Kf3 {[%clk 00:38:35]} {[%emt 00:00:04]} Ke1
{[%clk 00:11:47]} {[%emt 00:00:05]} 50. Ke3 {[%clk 00:38:54]} {[%emt 00:00:10]}
Kd1 {[%clk 00:12:02]} {[%emt 00:00:15]} 51. d4 {[%clk 00:39:19]} {[%emt
00:00:05]} c4 {[%clk 00:12:04]} {[%emt 00:00:29]} 52. bxc4 {[%clk 00:39:41]}
{[%emt 00:00:07]} dxc4 {[%clk 00:12:23]} {[%emt 00:00:11]} 53. d5 {[%clk
00:39:59]} {[%emt 00:00:12]} c3 {[%clk 00:12:36]} {[%emt 00:00:17]} 54. Kf4
{[%clk 00:39:50]} {[%emt 00:00:40]} c2 {[%clk 00:12:53]} {[%emt 00:00:13]} 55.
Kf5 {[%clk 00:40:16]} {[%emt 00:00:04]} c1=Q {[%clk 00:13:12]} {[%emt
00:00:10]} 56. Ke6 {[%clk 00:40:38]} {[%emt 00:00:08]} Qf4 {[%clk 00:12:55]}
{[%emt 00:00:46]} 57. Ke7 {[%clk 00:40:45]} {[%emt 00:00:24]} Qxb4 {[%clk
00:13:12]} {[%emt 00:00:13]} 58. Ke6 {[%clk 00:40:58]} {[%emt 00:00:18]} Qc5
{[%clk 00:13:15]} {[%emt 00:00:26]} 59. Ke7 {[%clk 00:41:17]} {[%emt 00:00:10]}
Qxd5 {[%clk 00:13:30]} {[%emt 00:00:17]} 60. Kf8 {[%clk 00:41:41]} {[%emt
00:00:05]} Qb7 {[%clk 00:13:51]} {[%emt 00:00:09]} 61. Ke8 {[%clk 00:42:06]}
{[%emt 00:00:06]} Ke2 {[%clk 00:14:11]} {[%emt 00:00:10]} 62. Kf8 {[%clk
00:42:29]} {[%emt 00:00:07]} Ke3 {[%clk 00:14:37]} {[%emt 00:00:03]} 63. Kg8
{[%clk 00:42:54]} {[%emt 00:00:05]} Kf4 {[%clk 00:15:02]} {[%emt 00:00:05]} 64.
Kf8 {[%clk 00:43:22]} {[%emt 00:00:02]} Ke5 {[%clk 00:15:25]} {[%emt 00:00:08]}
65. Kg8 {[%clk 00:43:45]} {[%emt 00:00:06]} Ke6 {[%clk 00:15:39]} {[%emt
00:00:16]} 66. Kh8 {[%clk 00:44:00]} {[%emt 00:00:15]} Qg2 {[%clk 00:15:53]}
{[%emt 00:00:16]} 67. Kh7 {[%clk 00:44:15]} {[%emt 00:00:14]} Kf7 {[%clk
00:16:17]} {[%emt 00:00:07]} 68. Kh6 {[%clk 00:44:37]} {[%emt 00:00:08]} Qh3+
{[%clk 00:16:43]} {[%emt 00:00:04]} 0-1

[Event "NJSK 2024 Cm"]
[Site "Groningen, Netherlands"]
[Date "2024.04.30"]
[Round "4.3"]
[White "Vermeulen, Ilona"]
[Black "Hardeman, Imara"]
[Result "0-1"]
[TimeControl "90min/40moves + 30min + 30sec/move"]
[WhiteElo "1427"]
[BlackElo "1676"]

1. e4 {[%clk 01:30:58]} {[%emt 00:00:02]} d5 {[%clk 01:30:48]} {[%emt
00:00:13]} 2. exd5 {[%clk 01:31:23]} {[%emt 00:00:05]} Qxd5 {[%clk 01:31:13]}
{[%emt 00:00:05]} 3. Nc3 {[%clk 01:31:45]} {[%emt 00:00:08]} Qd6 {[%clk
01:31:40]} {[%emt 00:00:03]} 4. Bc4 {[%clk 01:29:21]} {[%emt 00:02:54]} Nf6
{[%clk 01:31:25]} {[%emt 00:00:44]} 5. d3 {[%clk 01:27:39]} {[%emt 00:02:13]}
Bf5 {[%clk 01:27:57]} {[%emt 00:03:58]} 6. Qe2 {[%clk 01:26:38]} {[%emt
00:01:31]} e6 {[%emt 00:07:06]} 7. Bd2 {[%clk 01:20:52]} Be7 {[%clk 01:26:39]}
{[%emt 00:01:27]} 8. O-O-O {[%clk 01:16:59]} {[%emt 00:04:23]} Nc6 {[%clk
01:24:34]} {[%emt 00:02:36]} 9. Nb5 {[%clk 01:15:22]} {[%emt 00:02:07]} Qd7
{[%clk 01:23:33]} {[%emt 00:01:31]} 10. Bc3 {[%clk 01:14:04]} {[%emt 00:01:47]}
a6 {[%clk 01:23:28]} {[%emt 00:00:36]} 11. Na3 {[%clk 01:07:17]} {[%emt
00:07:17]} b5 {[%clk 01:23:46]} {[%emt 00:00:11]} 12. Bb3 {[%clk 01:04:35]}
{[%emt 00:03:13]} b4 {[%clk 01:21:05]} {[%emt 00:03:12]} 13. Bxf6 {[%clk
01:04:48]} {[%emt 00:00:16]} Bxf6 {[%clk 01:21:29]} {[%emt 00:00:06]} 14. Nc4
{[%clk 01:02:42]} {[%emt 00:02:36]} Nd4 {[%clk 01:21:30]} {[%emt 00:00:29]} 15.
Qe1 {[%clk 01:01:36]} {[%emt 00:01:30]} Nxb3+ {[%clk 01:21:20]} {[%emt
00:00:46]} 16. axb3 {[%clk 01:01:26]} {[%emt 00:00:39]} a5 {[%clk 01:21:20]}
{[%emt 00:00:31]} 17. Nf3 {[%clk 00:51:19]} {[%emt 00:10:37]} O-O {[%clk
01:18:56]} {[%emt 00:02:53]} 18. d4 {[%clk 00:48:00]} {[%emt 00:03:49]} Qb5
{[%clk 01:14:43]} {[%emt 00:04:44]} 19. Qe3 {[%clk 00:42:03]} {[%emt 00:06:26]}
a4 {[%clk 01:07:59]} {[%emt 00:07:15]} 20. Kd2 {[%clk 00:36:47]} {[%emt
00:05:46]} Ra6 {[%clk 00:59:54]} {[%emt 00:08:35]} 21. Ra1 {[%clk 00:33:43]}
{[%emt 00:03:33]} Rfa8 {[%clk 00:59:47]} {[%emt 00:00:38]} 22. h3 {[%clk
00:29:51]} {[%emt 00:04:22]} Bxc2 {[%clk 00:55:40]} {[%emt 00:04:37]} 23. Rxa4
{[%clk 00:24:36]} {[%emt 00:05:45]} Rxa4 {[%clk 00:54:02]} {[%emt 00:02:08]} 24.
bxa4 {[%clk 00:24:50]} {[%emt 00:00:17]} Qxc4 {[%clk 00:54:18]} {[%emt
00:00:14]} 25. Rc1 {[%clk 00:23:58]} {[%emt 00:01:21]} b3 {[%clk 00:54:36]}
{[%emt 00:00:12]} 26. Qc3 {[%clk 00:19:36]} {[%emt 00:04:52]} Qxc3+ {[%clk
00:53:54]} {[%emt 00:01:12]} 27. Kxc3 {[%clk 00:19:59]} {[%emt 00:00:06]} Rxa4
{[%clk 00:54:10]} {[%emt 00:00:14]} 28. Ne5 {[%clk 00:19:08]} {[%emt 00:01:22]}
Bxe5 {[%clk 00:54:09]} {[%emt 00:00:31]} 29. dxe5 {[%clk 00:19:32]} {[%emt
00:00:06]} Kf8 {[%clk 00:54:04]} {[%emt 00:00:33]} 30. g3 {[%clk 00:19:16]}
{[%emt 00:00:48]} Ke7 {[%clk 00:54:04]} {[%emt 00:00:31]} 31. f4 {[%clk
00:19:18]} {[%emt 00:00:27]} Kd7 {[%clk 00:54:05]} {[%emt 00:00:29]} 32. h4
{[%clk 00:19:01]} {[%emt 00:00:47]} Kc6 {[%clk 00:54:16]} {[%emt 00:00:18]} 33.
h5 {[%clk 00:18:36]} {[%emt 00:00:56]} Kc5 {[%clk 00:54:09]} {[%emt 00:00:37]}
34. Rh1 {[%clk 00:18:22]} {[%emt 00:00:43]} Rc4+ {[%clk 00:54:28]} {[%emt
00:00:12]} 35. Kd2 {[%clk 00:18:47]} {[%emt 00:00:05]} Rd4+ {[%clk 00:54:33]}
{[%emt 00:00:24]} 36. Ke3 {[%clk 00:18:44]} {[%emt 00:00:34]} Rd3+ {[%clk
00:54:46]} {[%emt 00:00:17]} 37. Ke4 {[%clk 00:18:25]} {[%emt 00:00:49]} Rd1+
{[%clk 00:55:10]} {[%emt 00:00:05]} 38. Kf3 {[%clk 00:18:10]} {[%emt 00:00:46]}
Rxh1 {[%clk 00:55:31]} {[%emt 00:00:09]} 39. Kg4 {[%clk 00:18:32]} {[%emt
00:00:07]} Bd1+ {[%clk 00:55:49]} {[%emt 00:00:12]} 40. Kg5 {[%clk 00:18:43]}
{[%emt 00:00:20]} Rxh5 {[%clk 00:56:09]} {[%emt 00:00:09]} 0-1

[Event "NJSK 2024 Cm"]
[Site "Groningen, Netherlands"]
[Date "2024.04.30"]
[Round "4.4"]
[White "Esvelt, Klio"]
[Black "Ganeshram, Niranjana"]
[Result "0-1"]
[TimeControl "90min/40moves + 30min + 30sec/move"]
[WhiteElo "1353"]
[BlackElo "1566"]

1. e4 {[%clk 01:30:58]} {[%emt 00:00:02]} d5 {[%clk 01:30:57]} {[%emt
00:00:04]} 2. exd5 {[%clk 01:31:24]} {[%emt 00:00:04]} Qxd5 {[%clk 01:31:21]}
{[%emt 00:00:06]} 3. Nc3 {[%clk 01:31:52]} {[%emt 00:00:02]} Qa5 {[%clk
01:31:44]} {[%emt 00:00:07]} 4. Bc4 {[%clk 01:31:42]} {[%emt 00:00:37]} e5
{[%clk 01:31:50]} {[%emt 00:00:26]} 5. Nf3 {[%clk 01:31:48]} {[%emt 00:00:19]}
Nf6 {[%clk 01:31:14]} {[%emt 00:01:11]} 6. d3 {[%clk 01:31:35]} {[%emt
00:00:43]} c6 {[%clk 01:31:26]} {[%emt 00:00:19]} 7. Bg5 {[%clk 01:31:54]}
{[%emt 00:00:11]} Qd8 {[%clk 01:31:36]} {[%emt 00:00:19]} 8. Qd2 {[%clk
01:31:38]} {[%emt 00:00:45]} Be7 {[%clk 01:31:55]} {[%emt 00:00:13]} 9. O-O-O
{[%clk 01:31:51]} {[%emt 00:00:17]} Nbd7 {[%clk 01:32:01]} {[%emt 00:00:24]} 10.
Rhe1 {[%clk 01:32:03]} {[%emt 00:00:17]} Qc7 {[%clk 01:31:31]} {[%emt
00:01:00]} 11. d4 {[%clk 01:31:09]} {[%emt 00:01:25]} b5 {[%clk 01:29:35]}
{[%emt 00:02:26]} 12. Bb3 {[%clk 01:30:22]} {[%emt 00:01:16]} b4 {[%clk
01:28:37]} {[%emt 00:01:28]} 13. Ne4 {[%clk 01:29:13]} {[%emt 00:01:38]} Nxe4
{[%clk 01:28:01]} {[%emt 00:01:06]} 14. Rxe4 {[%clk 01:29:32]} {[%emt
00:00:12]} Bxg5 {[%clk 01:23:47]} {[%emt 00:04:43]} 15. Nxg5 {[%clk 01:29:50]}
{[%emt 00:00:13]} O-O {[%clk 01:23:40]} {[%emt 00:00:37]} 16. dxe5 {[%clk
01:29:49]} {[%emt 00:00:32]} h6 {[%clk 01:21:27]} {[%emt 00:02:42]} 17. Nf3
{[%clk 01:28:49]} {[%emt 00:01:30]} a5 {[%clk 01:20:42]} {[%emt 00:01:15]} 18.
Qe3 {[%clk 01:25:01]} {[%emt 00:04:12]} a4 {[%clk 01:18:41]} {[%emt 00:02:38]}
19. e6 {[%clk 01:25:02]} {[%emt 00:00:28]} axb3 {[%clk 01:17:58]} {[%emt
00:01:13]} 20. Qxb3 {[%clk 01:25:02]} {[%emt 00:00:31]} Nc5 {[%clk 01:16:36]}
{[%emt 00:01:52]} 21. exf7+ {[%clk 01:25:26]} {[%emt 00:00:06]} Qxf7 {[%clk
01:14:53]} {[%emt 00:02:12]} 22. Qxf7+ {[%clk 01:25:48]} {[%emt 00:00:08]} Rxf7
{[%clk 01:15:20]} {[%emt 00:00:04]} 23. Re8+ {[%clk 01:25:58]} {[%emt
00:00:19]} Rf8 {[%clk 01:15:15]} {[%emt 00:00:35]} 24. Re7 {[%clk 01:25:14]}
{[%emt 00:01:09]} Rxa2 {[%clk 01:14:25]} {[%emt 00:01:26]} 25. Rde1 {[%clk
01:25:19]} {[%emt 00:00:18]} Ra1+ {[%clk 01:13:57]} {[%emt 00:01:04]} 26. Kd2
{[%clk 01:25:30]} {[%emt 00:00:19]} Rxe1 {[%clk 01:14:24]} {[%emt 00:00:04]} 27.
Nxe1 {[%clk 01:25:42]} {[%emt 00:00:18]} Rd8+ {[%clk 01:14:37]} {[%emt
00:00:17]} 28. Kc1 {[%clk 01:26:04]} {[%emt 00:00:07]} b3 {[%clk 01:15:00]}
{[%emt 00:00:08]} 29. c3 {[%clk 01:25:56]} {[%emt 00:00:38]} Kh7 {[%clk
01:14:55]} {[%emt 00:00:34]} 30. Rc7 {[%clk 01:26:04]} {[%emt 00:00:22]} Bg4
{[%clk 01:15:02]} {[%emt 00:00:23]} 31. f3 {[%clk 01:26:19]} {[%emt 00:00:16]}
Bd7 {[%clk 01:15:07]} {[%emt 00:00:24]} 32. Ra7 {[%clk 01:26:16]} {[%emt
00:00:33]} Re8 {[%clk 01:15:07]} {[%emt 00:00:31]} 33. Kd1 {[%clk 01:26:35]}
{[%emt 00:00:11]} Rd8 {[%clk 01:13:56]} {[%emt 00:01:41]} 34. Kc1 {[%clk
01:26:49]} {[%emt 00:00:15]} Bf5 {[%clk 01:14:04]} {[%emt 00:00:22]} 35. Ra5
{[%clk 01:27:07]} {[%emt 00:00:13]} Nd3+ {[%clk 01:14:23]} {[%emt 00:00:11]} 36.
Nxd3 {[%clk 01:27:23]} {[%emt 00:00:13]} Bxd3 {[%emt 00:00:27]} 37. Ra3 {[%clk
01:27:37]} Bc2 {[%clk 01:15:01]} {[%emt 00:00:12]} 38. Ra6 {[%clk 01:26:16]}
{[%emt 00:01:51]} Rd1# {[%clk 01:14:54]} {[%emt 00:00:07]} 0-1